fUST/lending_fUST_20250307
["ID","MTS","AMOUNT","RATE_DAILY","PERIOD"]
[355560981,1741287040091,-3369.39743915,0.00033477,2]
[355560982,1741287040100,-3369.39743915,0.00033477,2]
[355560983,1741287040110,-3369.39743915,0.00033477,2]
[355560984,1741287040119,-3369.39743915,0.00033477,2]
[355560985,1741287040129,-3369.39743915,0.00033477,2]
[355560986,1741287040138,-3369.39743915,0.00033477,2]
[355560987,1741287040147,-3369.39743915,0.00033477,2]
[355560988,1741287040157,-3369.39743915,0.00033477,2]
[355560989,1741287040167,-3369.39743915,0.00033477,2]
[355560990,1741287040176,-3369.39743915,0.00033477,2]
[355560991,1741287040186,-3369.39743915,0.00033477,2]
[355560992,1741287040196,-3369.39743915,0.00033477,2]
[355560993,1741287040206,-3369.39743915,0.00033477,2]
[355560994,1741287040216,-3360.29095958,0.00033477,2]
[355560995,1741287040225,-3360.29095958,0.00033477,2]
[355560996,1741287040235,-3360.29095958,0.00033477,2]
[355560997,1741287040244,-3360.29095958,0.00033477,2]
[355560998,1741287040254,-3360.29095958,0.00033477,2]
[355560999,1741287040263,-3360.29095958,0.00033477,2]
[355561000,1741287040272,-3360.29095958,0.00033477,2]
[355561001,1741287040287,-3360.29095958,0.00033477,2]
[355561002,1741287040297,-3360.29095958,0.00033477,2]
[355561003,1741287040307,-3360.29095958,0.00033477,2]
[355561004,1741287040316,-2531.33335663,0.00033477,2]
[355561038,1741287043193,-828.95760295,0.00033477,2]
[355561039,1741287043202,-3360.29095958,0.00033477,2]
[355561040,1741287043213,-3360.29095958,0.00033477,2]
[355561041,1741287043223,-3360.29095958,0.00033477,2]
[355561042,1741287043233,-3360.29095958,0.00033477,2]
[355561043,1741287043243,-3360.29095958,0.00033477,2]
[355561044,1741287043253,-3035.93418337,0.00033477,2]
[355561045,1741287043337,-0.09169854,0.00033477,2]
[355561063,1741287046106,-324.26507767,0.00033477,2]
[355561064,1741287046116,-3360.29095958,0.00033477,2]
[355561065,1741287046126,-3360.29095958,0.00033477,2]
[355561066,1741287046136,-3360.29095958,0.00033477,2]
[355561067,1741287046146,-3360.29095958,0.00033477,2]
[355561068,1741287046156,-3360.29095958,0.00033477,2]
[355561069,1741287046166,-3360.29095958,0.00033477,2]
[355561070,1741287046175,-3360.29095958,0.00033477,2]
[355561071,1741287046185,-3360.29095958,0.00033477,2]
[355561072,1741287046195,-3360.29095958,0.00033477,2]
[355561073,1741287046204,-3360.29095958,0.00033477,2]
[355561074,1741287046217,-3360.29095958,0.00033477,2]
[355561075,1741287046227,-3360.29095958,0.00033477,2]
[355561077,1741287046237,-3360.29095958,0.00033477,2]
[355561078,1741287046246,-3360.29095958,0.00033477,2]
[355561079,1741287046256,-3360.29095958,0.00033477,2]
[355561080,1741287046267,-3360.29095959,0.00033477,2]
[355561081,1741287046276,-3360.29095959,0.00033477,2]
[355561082,1741287046286,-3360.29095959,0.00033477,2]
[355561083,1741287046296,-3360.29095959,0.00033477,2]
[355561084,1741287046306,-3360.29095958,0.00033477,2]
[355561085,1741287046317,-391.623441,0.00033478,5]
[355561086,1741287046328,-20371.32389075,0.00033478,2]
[355561087,1741287046345,-2743.38561492,0.00033478,2]
[355561100,1741287230562,-24900.0,0.00032105,2]
[355561101,1741287230591,-10000.0,0.00032182,2]
[355561109,1741287253682,-167.3488302,0.00033222,4]
[355561110,1741287253706,-12872.39705543,0.00033373,2]
[355561111,1741287253729,-168.95801988,0.00033377,2]
[355561112,1741287253753,-160.35,0.00033466,2]
[355561113,1741287253776,-472.03,0.00033467,3]
[355561114,1741287253803,-236.01,0.00033467,3]
[355561115,1741287253825,-708.07,0.00033467,3]
[355561116,1741287253850,-1265.43621274,0.00033473,2]
[355561117,1741287253871,-187.0,0.00033476,2]
[355561118,1741287253897,-942.41230919,0.00033477,2]
[355561119,1741287253919,-193.2448528,0.00033477,7]
[355561120,1741287253944,-942.41230919,0.00033477,2]
[355561121,1741287253967,-942.41230919,0.00033477,2]
[355561122,1741287253991,-942.41230919,0.00033477,2]
[355561123,1741287254015,-942.41230919,0.00033477,2]
[355561124,1741287254038,-942.41230919,0.00033477,2]
[355561125,1741287254061,-942.41230919,0.00033477,2]
[355561126,1741287254084,-942.41230919,0.00033477,2]
[355561127,1741287254107,-942.41230919,0.00033477,2]
[355561128,1741287254131,-942.41230919,0.00033477,2]
[355561129,1741287254156,-942.41230919,0.00033477,2]
[355561130,1741287254180,-942.41230919,0.00033477,2]
[355561131,1741287254204,-942.41230919,0.00033477,2]
[355561132,1741287254228,-942.41230919,0.00033477,2]
[355561133,1741287254252,-942.41230919,0.00033477,2]
[355561134,1741287254275,-942.41230919,0.00033477,2]
[355561135,1741287254298,-942.41230919,0.00033477,2]
[355561136,1741287254320,-942.41230919,0.00033477,2]
[355561137,1741287254343,-942.41230919,0.00033477,2]
[355561138,1741287254365,-942.41230919,0.00033477,2]
[355561139,1741287254389,-942.41230919,0.00033477,2]
[355561140,1741287254412,-942.41230919,0.00033477,2]
[355561141,1741287254434,-942.41230919,0.00033477,2]
[355561142,1741287254457,-942.41230919,0.00033477,2]
[355561143,1741287254480,-942.41230919,0.00033477,2]
[355561144,1741287254503,-942.41230919,0.00033477,2]
[355561145,1741287254527,-942.41230919,0.00033477,2]
[355561146,1741287254551,-942.41230919,0.00033477,2]
[355561147,1741287254575,-942.41230919,0.00033477,2]
[355561148,1741287254598,-942.41230919,0.00033477,2]
[355561149,1741287254621,-942.41230919,0.00033477,2]
[355561150,1741287254645,-942.41230919,0.00033477,2]
[355561151,1741287254669,-942.41230919,0.00033477,2]
[355561152,1741287254693,-942.41230919,0.00033477,2]
[355561153,1741287254717,-942.41230919,0.00033477,2]
[355561154,1741287254741,-942.41230919,0.00033477,2]
[355561155,1741287254765,-942.41230919,0.00033477,2]
[355561156,1741287254789,-942.41230919,0.00033477,2]
[355561157,1741287254812,-942.41230919,0.00033477,2]
[355561158,1741287254835,-942.41230919,0.00033477,2]
[355561159,1741287254861,-942.41230919,0.00033477,2]
[355561160,1741287254885,-942.41230919,0.00033477,2]
[355561161,1741287254909,-942.41230919,0.00033477,2]
[355561162,1741287254935,-942.41230919,0.00033477,2]
[355561163,1741287254958,-942.41230919,0.00033477,2]
[355561164,1741287255181,-942.41230919,0.00033477,2]
[355561165,1741287255207,-942.41230919,0.00033477,2]
[355561166,1741287255232,-942.41230919,0.00033477,2]
[355561167,1741287255256,-942.41230919,0.00033477,2]
[355561168,1741287255280,-942.41230919,0.00033477,2]
[355561169,1741287255305,-942.41230919,0.00033477,2]
[355561170,1741287255329,-942.41230919,0.00033477,2]
[355561171,1741287255353,-942.41230919,0.00033477,2]
[355561172,1741287255378,-942.41230919,0.00033477,2]
[355561173,1741287255404,-942.41230919,0.00033477,2]
[355561174,1741287255428,-942.41230919,0.00033477,2]
[355561175,1741287255452,-942.41230919,0.00033477,2]
[355561176,1741287255475,-942.41230919,0.00033477,2]
[355561177,1741287255499,-942.41230919,0.00033477,2]
[355561178,1741287255523,-942.41230919,0.00033477,2]
[355561179,1741287255546,-942.41230919,0.00033477,2]
[355561180,1741287255569,-942.41230919,0.00033477,2]
[355561181,1741287255593,-942.41230919,0.00033477,2]
[355561182,1741287255618,-942.41230919,0.00033477,2]
[355561183,1741287255642,-942.41230919,0.00033477,2]
[355561184,1741287255667,-942.41230919,0.00033477,2]
[355561185,1741287255691,-942.41230919,0.00033477,2]
[355561186,1741287255716,-942.41230919,0.00033477,2]
[355561187,1741287255741,-942.41230919,0.00033477,2]
[355561188,1741287255765,-942.41230919,0.00033477,2]
[355561189,1741287255789,-942.41230919,0.00033477,2]
[355561190,1741287255814,-942.41230919,0.00033477,2]
[355561191,1741287255838,-942.41230919,0.00033477,2]
[355561192,1741287255876,-942.41230919,0.00033477,2]
[355561193,1741287255900,-942.41230919,0.00033477,2]
[355561194,1741287255924,-942.41230919,0.00033477,2]
[355561195,1741287255948,-942.41230919,0.00033477,2]
[355561196,1741287255971,-942.41230919,0.00033477,2]
[355561197,1741287255995,-942.41230919,0.00033477,2]
[355561198,1741287256019,-942.41230919,0.00033477,2]
[355561199,1741287256043,-942.41230919,0.00033477,2]
[355561200,1741287256067,-942.41230919,0.00033477,2]
[355561201,1741287256091,-942.41230919,0.00033477,2]
[355561202,1741287256115,-942.41230919,0.00033477,2]
[355561203,1741287256141,-942.41230922,0.00033477,2]
[355561204,1741287256165,-942.41230922,0.00033477,2]
[355561205,1741287256191,-942.41230922,0.00033477,2]
[355561206,1741287256216,-942.41230922,0.00033477,2]
[355561207,1741287256241,-942.41230922,0.00033477,2]
[355561208,1741287256265,-942.4123092,0.00033477,2]
[355561209,1741287256287,-9340.74353808,0.00033491,2]
[355561210,1741287256309,-811.1685936,0.00033495,2]
[355561211,1741287256331,-744.789944,0.00033501,14]
[355561212,1741287256352,-744.789944,0.00033501,14]
[355561213,1741287256373,-744.789944,0.00033501,14]
[355561214,1741287256395,-744.789944,0.00033501,14]
[355561215,1741287256417,-744.789944,0.00033505,14]
[355561216,1741287256439,-744.789944,0.00033505,14]
[355561217,1741287256461,-37362.9741523,0.00033505,2]
[355561218,1741287256482,-217.50126997,0.00033514,7]
[355561219,1741287256506,-195.8117205,0.00033515,5]
[355561220,1741287256527,-645.80918631,0.00033515,5]
[355561221,1741287256549,-744.789944,0.00033515,14]
[355561222,1741287256570,-744.789944,0.00033515,14]
[355561223,1741287256592,-159319.71918893,0.00033515,2]
[355561224,1741287274995,-167.3488302,0.00033099,4]
[355561225,1741287275018,-49832.6511698,0.00033515,2]
[355561227,1741287380824,-167.3488302,0.00033099,4]
[355561228,1741287380845,-198.07233014,0.00033122,2]
[355561229,1741287380866,-2190.50451299,0.00033122,2]
[355561230,1741287380887,-97444.07432667,0.00033405,2]
[355561232,1741287409588,-67000.0,0.00033405,2]
[355561233,1741287483012,-167.3488302,0.00033099,4]
[355561234,1741287483041,-612.43193101,0.00033404,2]
[355561235,1741287483068,-500.0,0.00033404,2]
[355561236,1741287483097,-500.0,0.00033404,2]
[355561237,1741287483123,-500.0,0.00033404,2]
[355561238,1741287483150,-500.0,0.00033404,2]
[355561239,1741287483177,-500.0,0.00033404,2]
[355561240,1741287483203,-500.0,0.00033404,2]
[355561241,1741287483228,-500.0,0.00033404,2]
[355561242,1741287483256,-500.0,0.00033404,2]
[355561243,1741287483281,-500.0,0.00033404,2]
[355561244,1741287483306,-500.0,0.00033404,2]
[355561245,1741287483332,-500.0,0.00033404,2]
[355561246,1741287483357,-500.0,0.00033404,2]
[355561247,1741287483381,-500.0,0.00033404,2]
[355561248,1741287483406,-500.0,0.00033404,2]
[355561249,1741287483431,-500.0,0.00033404,2]
[355561250,1741287483455,-500.0,0.00033404,2]
[355561251,1741287483481,-500.0,0.00033404,2]
[355561252,1741287483507,-500.0,0.00033404,2]
[355561253,1741287483530,-500.0,0.00033404,2]
[355561254,1741287483556,-500.0,0.00033404,2]
[355561255,1741287483580,-500.0,0.00033404,2]
[355561256,1741287483605,-500.0,0.00033404,2]
[355561257,1741287483630,-500.0,0.00033404,2]
[355561258,1741287483656,-500.0,0.00033404,2]
[355561259,1741287483682,-531.62149374,0.00033404,2]
[355561260,1741287483719,-500.0,0.00033404,2]
[355561261,1741287483747,-500.0,0.00033404,2]
[355561262,1741287483770,-374.0,0.00033405,2]
[355561263,1741287483794,-57555.92567333,0.00033405,2]
[355561264,1741287483818,-1000.0,0.00033487,120]
[355561265,1741287483841,-275.6,0.00033494,2]
[355561266,1741287483865,-1000.0,0.000335,10]
[355561267,1741287483887,-1000.0,0.000335,15]
[355561268,1741287483910,-168.95801985,0.00033551,2]
[355561269,1741287483934,-500.0,0.00033573,5]
[355561270,1741287483955,-500.0,0.00033616,2]
[355561271,1741287483977,-168.95801985,0.00033726,2]
[355561272,1741287484000,-151.0,0.00033774,2]
[355561273,1741287484024,-749.19193284,0.000338,120]
[355561274,1741287484046,-9340.74353808,0.0003389,2]
[355561275,1741287484068,-236.01,0.0003389,3]
[355561276,1741287484092,-196.67,0.0003389,3]
[355561277,1741287484115,-168.95801985,0.000339,2]
[355561278,1741287484137,-13421.89433656,0.000339,6]
[355561279,1741287484160,-18681.4870762,0.0003399,2]
[355561280,1741287484183,-152.25088898,0.00033999,7]
[355561281,1741287484206,-500.0,0.00033999,7]
[355561282,1741287484229,-500.0,0.00033999,7]
[355561283,1741287484252,-500.0,0.00033999,7]
[355561284,1741287484274,-502.06498391,0.00033999,7]
[355561285,1741287484297,-426.75937433,0.00033999,7]
[355561286,1741287484389,-93652.51939233,0.00034,2]
[355561287,1741287484411,-6000.0,0.00034,3]
[355561288,1741287484432,-800.0,0.00034,5]
[355561289,1741287484453,-6869.10244827,0.00034002,2]
[355561290,1741287484474,-500.0,0.00034389,5]
[355561291,1741287484494,-634.78604166,0.00034389,5]
[355561292,1741287484515,-500.0,0.00034389,5]
[355561293,1741287484536,-151.0,0.000347,10]
[355561294,1741287484557,-6900.0,0.000348,2]
[355561295,1741287484579,-275.6,0.00034864,2]
[355561296,1741287484603,-151.0,0.000349,13]
[355561297,1741287484624,-151.0,0.000349,17]
[355561298,1741287484644,-3000.0,0.000349,2]
[355561299,1741287484666,-915.33944305,0.000349,30]
[355561300,1741287484688,-164.37073,0.000349,21]
[355561301,1741287484710,-9340.74353808,0.00034963,2]
[355561302,1741287484733,-1217.00873856,0.00034968,17]
[355561303,1741287484755,-288.57374511,0.00034973,5]
[355561304,1741287484776,-257.83195268,0.00034973,5]
[355561305,1741287484797,-500.0,0.00034973,5]
[355561306,1741287484818,-295.88347012,0.00034973,5]
[355561307,1741287484843,-153.0,0.00034973,5]
[355561308,1741287484864,-500.0,0.00034973,5]
[355561309,1741287484886,-500.0,0.00034973,5]
[355561310,1741287484907,-623.71405273,0.00034973,2]
[355561311,1741287484929,-500.0,0.00034973,5]
[355561312,1741287484951,-500.0,0.00034973,5]
[355561313,1741287484973,-500.0,0.00034973,5]
[355561314,1741287484994,-500.0,0.00034973,5]
[355561315,1741287485016,-166.0,0.0003499,7]
[355561316,1741287485039,-166.0,0.0003499,7]
[355561317,1741287485060,-166.0,0.0003499,7]
[355561318,1741287485081,-168.0,0.0003499,7]
[355561319,1741287485102,-166.0,0.0003499,7]
[355561320,1741287485124,-168.0,0.0003499,7]
[355561321,1741287485145,-168.0,0.0003499,7]
[355561322,1741287485165,-351.0,0.0003499,7]
[355561323,1741287485185,-297.64927093,0.0003499,7]
[355561324,1741287485206,-351.0,0.0003499,7]
[355561325,1741287485226,-351.0,0.0003499,7]
[355561326,1741287485246,-351.0,0.0003499,7]
[355561327,1741287485267,-351.0,0.0003499,7]
[355561328,1741287485287,-351.0,0.0003499,7]
[355561329,1741287485307,-351.0,0.0003499,7]
[355561330,1741287485329,-351.0,0.0003499,7]
[355561331,1741287485351,-316.0,0.0003499,7]
[355561332,1741287485373,-351.0,0.0003499,7]
[355561333,1741287485394,-316.0,0.0003499,7]
[355561334,1741287485415,-351.0,0.0003499,7]
[355561335,1741287485435,-351.0,0.0003499,7]
[355561336,1741287485455,-316.0,0.0003499,7]
[355561337,1741287485476,-316.0,0.0003499,7]
[355561338,1741287485496,-495.35027609,0.0003499,7]
[355561339,1741287485517,-316.0,0.0003499,7]
[355561340,1741287485537,-316.0,0.0003499,7]
[355561341,1741287485558,-316.0,0.0003499,7]
[355561342,1741287485580,-316.0,0.0003499,7]
[355561343,1741287485603,-316.0,0.0003499,7]
[355561344,1741287485624,-316.0,0.0003499,7]
[355561345,1741287485646,-316.0,0.0003499,7]
[355561346,1741287485667,-316.0,0.0003499,7]
[355561347,1741287485689,-316.0,0.0003499,7]
[355561348,1741287485709,-316.0,0.0003499,7]
[355561349,1741287485730,-316.0,0.0003499,7]
[355561350,1741287485751,-316.0,0.0003499,7]
[355561351,1741287485773,-316.0,0.0003499,7]
[355561352,1741287485796,-316.0,0.0003499,7]
[355561353,1741287485816,-316.0,0.0003499,7]
[355561354,1741287485837,-316.0,0.0003499,7]
[355561355,1741287485859,-316.0,0.0003499,7]
[355561356,1741287485881,-316.0,0.0003499,7]
[355561357,1741287485903,-316.0,0.0003499,7]
[355561358,1741287485926,-316.0,0.0003499,7]
[355561359,1741287485952,-316.0,0.0003499,7]
[355561360,1741287485974,-316.0,0.0003499,7]
[355561361,1741287485996,-316.0,0.0003499,7]
[355561362,1741287486019,-316.0,0.0003499,7]
[355561363,1741287486040,-316.0,0.0003499,7]
[355561364,1741287486061,-316.0,0.0003499,7]
[355561365,1741287486082,-316.0,0.0003499,7]
[355561366,1741287486106,-316.0,0.0003499,7]
[355561367,1741287486127,-316.0,0.0003499,7]
[355561368,1741287486148,-316.0,0.0003499,7]
[355561369,1741287486169,-316.0,0.0003499,7]
[355561370,1741287486191,-316.0,0.0003499,7]
[355561371,1741287486212,-316.0,0.0003499,7]
[355561372,1741287486233,-316.0,0.0003499,7]
[355561373,1741287486254,-316.0,0.0003499,7]
[355561374,1741287486275,-316.0,0.0003499,7]
[355561375,1741287486295,-316.0,0.0003499,7]
[355561376,1741287486316,-316.0,0.0003499,7]
[355561377,1741287486337,-316.0,0.0003499,7]
[355561378,1741287486358,-316.0,0.0003499,7]
[355561379,1741287486379,-316.0,0.0003499,7]
[355561380,1741287486400,-316.0,0.0003499,7]
[355561381,1741287486421,-316.0,0.0003499,7]
[355561382,1741287486442,-316.0,0.0003499,7]
[355561383,1741287486463,-316.0,0.0003499,7]
[355561384,1741287486485,-316.0,0.0003499,7]
[355561385,1741287486506,-316.0,0.0003499,7]
[355561386,1741287486527,-316.0,0.0003499,7]
[355561387,1741287486549,-316.0,0.0003499,7]
[355561388,1741287486569,-316.0,0.0003499,7]
[355561389,1741287486592,-316.0,0.0003499,7]
[355561390,1741287486613,-316.0,0.0003499,7]
[355561391,1741287486634,-316.0,0.0003499,7]
[355561392,1741287486657,-316.0,0.0003499,7]
[355561393,1741287486678,-316.0,0.0003499,7]
[355561394,1741287486699,-316.0,0.0003499,7]
[355561395,1741287486729,-226.4792915,0.0003499,7]
[355561396,1741287486757,-195.81172048,0.00035,5]
[355561397,1741287486781,-10000.0,0.00035,2]
[355561398,1741287486803,-50046.40896607,0.00035,2]
[355561399,1741287486825,-256025.95280361,0.00035,30]
[355561403,1741287663370,-568.328306,0.00033468,2]
[355561404,1741287663393,-400.553504,0.00033593,2]
[355561405,1741287663415,-172.77270691,0.0003474,30]
[355561406,1741287663439,-2870.32772916,0.0003489,2]
[355561407,1741287663462,-500.0,0.00034899,7]
[355561408,1741287663492,-500.0,0.00034899,7]
[355561409,1741287663516,-245.05147203,0.00034899,7]
[355561410,1741287663539,-308.02111103,0.00034899,7]
[355561411,1741287663564,-648.40928488,0.00034899,7]
[355561412,1741287663591,-500.0,0.00034899,2]
[355561413,1741287663618,-500.0,0.00034899,2]
[355561414,1741287663644,-503.5134993,0.00034899,2]
[355561415,1741287663667,-150.99912661,0.000349,2]
[355561416,1741287663692,-12974.49785852,0.000349,7]
[355561417,1741287663715,-222000.0,0.000349,2]
[355561418,1741287663740,-16991.9469414,0.0003499,2]
[355561419,1741287663762,-455.91124497,0.0003499,2]
[355561420,1741287663787,-163.9,0.0003499,3]
[355561421,1741287663809,-491.7,0.0003499,3]
[355561422,1741287663831,-351.0,0.00034995,7]
[355561423,1741287663852,-351.0,0.00034995,7]
[355561424,1741287663878,-351.0,0.00034995,7]
[355561425,1741287663901,-181.27346106,0.00034999,2]
[355561426,1741287663922,-87819.79375413,0.00035,30]
[355561428,1741287827250,-250.0,0.00032697,2]
[355561429,1741287827272,-264.27366,0.00033317,2]
[355561430,1741287827292,-295.3347011,0.00034299,4]
[355561431,1741287827313,-189.58583207,0.000348,2]
[355561432,1741287827333,-327.8,0.0003489,3]
[355561433,1741287827354,-15550.7173421,0.0003489,2]
[355561434,1741287827376,-222000.0,0.000349,2]
[355561435,1741287827396,-12542.01459655,0.000349,7]
[355561436,1741287827416,-5183.57244737,0.00034989,2]
[355561437,1741287827436,-10367.1448947,0.0003499,2]
[355561438,1741287827456,-416.66666667,0.00034994,2]
[355561439,1741287827476,-316.0,0.00034995,7]
[355561440,1741287827497,-316.0,0.00034995,7]
[355561441,1741287827517,-316.0,0.00034995,7]
[355561442,1741287827538,-316.0,0.00034995,7]
[355561443,1741287827558,-316.0,0.00034995,7]
[355561444,1741287827579,-316.0,0.00034995,7]
[355561445,1741287827600,-316.0,0.00034995,7]
[355561446,1741287827619,-316.0,0.00034995,7]
[355561447,1741287827640,-316.0,0.00034995,7]
[355561448,1741287827659,-316.0,0.00034995,7]
[355561449,1741287827690,-316.0,0.00034995,7]
[355561450,1741287827956,-316.0,0.00034995,7]
[355561451,1741287827977,-316.0,0.00034995,7]
[355561452,1741287827998,-316.0,0.00034995,7]
[355561453,1741287828020,-316.0,0.00034995,7]
[355561454,1741287828041,-316.0,0.00034995,7]
[355561455,1741287828065,-316.0,0.00034995,7]
[355561456,1741287828085,-316.0,0.00034995,7]
[355561457,1741287828107,-316.0,0.00034995,7]
[355561458,1741287828129,-316.0,0.00034995,7]
[355561459,1741287828150,-316.0,0.00034995,7]
[355561460,1741287828171,-316.0,0.00034995,7]
[355561461,1741287828192,-500.0,0.00034999,7]
[355561462,1741287828218,-500.0,0.00034999,2]
[355561463,1741287828240,-500.0,0.00034999,2]
[355561464,1741287828263,-500.0,0.00034999,2]
[355561465,1741287828285,-500.0,0.00034999,2]
[355561466,1741287828308,-500.0,0.00034999,2]
[355561467,1741287828330,-500.0,0.00034999,2]
[355561468,1741287828353,-500.0,0.00034999,2]
[355561469,1741287828375,-500.0,0.00034999,2]
[355561470,1741287828398,-505.88933675,0.00034999,2]
[355561471,1741287828420,-500.0,0.00034999,2]
[355561472,1741287828443,-500.0,0.00034999,2]
[355561473,1741287828466,-500.0,0.00034999,2]
[355561474,1741287828490,-500.0,0.00034999,2]
[355561475,1741287828513,-500.0,0.00034999,2]
[355561476,1741287828535,-500.0,0.00034999,2]
[355561477,1741287828558,-500.0,0.00034999,2]
[355561478,1741287828580,-500.0,0.00034999,2]
[355561479,1741287828603,-500.0,0.00034999,2]
[355561480,1741287828626,-500.0,0.00034999,2]
[355561481,1741287828648,-500.0,0.00034999,2]
[355561482,1741287828671,-500.0,0.00034999,2]
[355561483,1741287828694,-500.0,0.00034999,2]
[355561484,1741287828717,-500.0,0.00034999,2]
[355561485,1741287828740,-500.0,0.00034999,2]
[355561486,1741287828763,-500.0,0.00034999,2]
[355561487,1741287828786,-500.0,0.00034999,2]
[355561488,1741287828810,-500.0,0.00034999,2]
[355561489,1741287828839,-500.0,0.00034999,2]
[355561490,1741287828863,-500.0,0.00034999,2]
[355561491,1741287828885,-500.0,0.00034999,2]
[355561492,1741287828907,-502.80584855,0.00034999,7]
[355561493,1741287828931,-500.0,0.00034999,2]
[355561494,1741287828954,-500.0,0.00034999,2]
[355561495,1741287828976,-500.0,0.00034999,2]
[355561496,1741287828999,-500.0,0.00034999,2]
[355561497,1741287829022,-250.0,0.00034999,2]
[355561498,1741287829044,-46154.25344226,0.00035,30]
[355561499,1741287829071,-615.56,0.00035,14]
[355561500,1741287829092,-1000.0,0.00035,2]
[355561501,1741287829116,-528.8,0.00035,30]
[355561502,1741287829138,-625.13,0.00035,30]
[355561503,1741287829160,-10519.85976923,0.00035,2]
[355561504,1741287829184,-862.35736333,0.00035,2]
[355561505,1741287829206,-50096.23409932,0.00035,2]
[355561594,1741288233147,-150.0,0.000329,2]
[355561595,1741288233157,-195.3698055,0.00033241,2]
[355561596,1741288233166,-1393.1270024,0.00033263,2]
[355561597,1741288233176,-180.689601,0.00033357,2]
[355561598,1741288233187,-187.3240513,0.00034299,4]
[355561599,1741288233201,-1054.11635138,0.00034694,2]
[355561600,1741288233213,-198.07233014,0.00034794,2]
[355561601,1741288233224,-2511.53676305,0.000348,2]
[355561602,1741288233234,-168.78555313,0.000348,2]
[355561603,1741288233244,-300.0,0.000348,2]
[355561604,1741288233254,-416.66666667,0.00034878,2]
[355561605,1741288233263,-400.0,0.00034882,2]
[355561606,1741288233273,-844.90131237,0.00034883,2]
[355561607,1741288233283,-10885.5021395,0.0003489,2]
[355561608,1741288233293,-387.52455822,0.0003489,2]
[355561609,1741288233303,-171.53603042,0.00034899,7]
[355561610,1741288233312,-500.0,0.00034899,7]
[355561611,1741288233322,-500.0,0.00034899,7]
[355561612,1741288233331,-315.0363276,0.00034899,7]
[355561613,1741288233341,-500.0,0.00034899,7]
[355561614,1741288233351,-220.7613208,0.00034899,7]
[355561615,1741288233360,-500.0,0.00034899,2]
[355561616,1741288233370,-500.0,0.00034899,2]
[355561617,1741288233379,-500.0,0.00034899,2]
[355561618,1741288233388,-500.0,0.00034899,2]
[355561619,1741288233398,-160.48083005,0.00034899,2]
[355561620,1741288233407,-11997.70855495,0.000349,2]
[355561621,1741288233613,-210002.29144505,0.000349,2]
[355561622,1741288233623,-555.67,0.000349,30]
[355561623,1741288233632,-475.92,0.000349,30]
[355561624,1741288233642,-3628.50071316,0.0003499,2]
[355561625,1741288233651,-226.4792915,0.00034995,7]
[355561626,1741288233660,-184.66850652,0.00034999,120]
[355561627,1741288233669,-5793.24092338,0.00035,2]
[355561628,1741288233679,-150.0,0.00035,30]
[355561629,1741288233688,-423.72577479,0.00035,2]
[355561630,1741288233698,-1814.1481189,0.00035,2]
[355561631,1741288233707,-168.78555311,0.00035039,2]
[355561632,1741288233718,-1114.377424,0.00035068,30]
[355561633,1741288233727,-168.78555311,0.00035277,2]
[355561634,1741288233737,-1375.74803926,0.00035506,2]
[355561635,1741288233747,-3000.0,0.00035516,2]
[355561636,1741288233757,-168.78555311,0.00035516,2]
[355561637,1741288233767,-2511.536763,0.00035568,2]
[355561638,1741288233777,-250.0,0.00035586,120]
[355561639,1741288233787,-236.76762846,0.00035595,2]
[355561640,1741288233796,-3628.50071316,0.00035596,3]
[355561641,1741288233806,-416.66666667,0.00035605,7]
[355561642,1741288233816,-416.66666667,0.00035606,3]
[355561643,1741288233826,-47170.5092711,0.00035606,3]
[355561644,1741288233836,-1679.27308562,0.00035606,3]